Cogmind - Beta 10.2 @@@ ROGUE MODE // 2022.02.02 @ 13:39:41 Player: Ecllection Result: Destroyed by G-47 Trooper with Particle Gun Performance ------------- Evolutions (2) 1000 Regions Visited (3) 600 Robots Destroyed (15) 75 Value Destroyed (598) 598 Prototype IDs (0) 0 Alien Tech Used (0) 0 Bonus (0) 0 TOTAL SCORE: 2273 Bonus ------- None Cogmind --------- Core Integrity 0/550 Matter 300/300 Energy 100/100 System Corruption 0% Temperature Cool (9) Movement Core (300) Ox5 Location -8/Materials Parts ------- > --- POWER (2) -------- (None) > --- PROPULSION (3) --- (None) > --- UTILITY (4) ------ Heat Sink Large Storage Unit Transmission Jammer > --- WEAPON (2) ------- (None) > --- INVENTORY (10) --- Heavy EM Pulse Gun Medium Laser Medium Laser Beam Rifle Peak State ------------ > --- POWER ------------ Ion Engine > --- PROPULSION ------- Light Treads Light Treads Armored Treads > --- UTILITY ---------- Heat Sink Heat Sink Large Storage Unit Transmission Jammer > --- WEAPON ----------- Heavy EM Pulse Gun Ion Cannon > --- INVENTORY -------- Medium Laser Medium Laser Beam Rifle Beam Rifle Particle Cannon [Rating: 17] Favorites ----------- Power Ion Engine Engine Ion Engine Propulsion Light Treads Treads Light Treads Utility Heat Sink Device Heat Sink Storage Small Storage Unit Weapon Medium Laser Energy Gun Medium Laser Energy Cannon Particle Cannon Build | -11 -10 -9 -8 ------- Run | Scr Mat Mat Mat Slots Evolved 4 | . . 2 2 Power 1 | . . 1 . Propulsion 1 | . . . 1 Utility 2 | . . 1 1 Weapon . | . . . . Parts Attached 17 | 6 1 4 6 Power 2 | 1 . 1 . Engine 2 | 1 . 1 . Core . | . . . . Reactor . | . . . . Propulsion 4 | 2 . . 2 Treads 4 | 2 . . 2 Leg . | . . . . Wheel . | . . . . Hover . | . . . . Flight . | . . . . Utility 5 | 1 1 2 1 Device 3 | . 1 1 1 Storage 2 | 1 . 1 . Processor . | . . . . Hackware . | . . . . Protection . | . . . . Artifact . | . . . . Weapon 6 | 2 . 1 3 Energy Gun 4 | 2 . . 2 Energy Cannon 2 | . . 1 1 Ballistic Gun . | . . . . Ballistic Cannon . | . . . . Launcher . | . . . . Special Weapon . | . . . . Impact Weapon . | . . . . Slashing Weapon . | . . . . Piercing Weapon . | . . . . Special Melee Weapon . | . . . . Unidentified Prototypes . | . . . . Parts Lost 6 | . . . 6 Power 2 | . . . 2 Propulsion 2 | . . . 2 Utility . | . . . . Weapon 2 | . . . 2 Highest Loss Streak 5 | . . . 5 Average Slot Usage (%) 91 | . 87 97 79 Engine 17 | . 14 22 9 Treads 23 | . 28 22 23 Device 16 | . 2 19 21 Storage 11 | . 14 11 9 Energy Gun 14 | . 28 12 7 Energy Cannon 7 | . . 9 7 Naked Turns . | . . . . Heaviest Build 35 | 13 14 34 35 Greatest Support 60 | 40 40 40 60 Greatest Overweight (x) 5 | . . . 5 Average Overweight (x) . | . . . . Largest Inventory Capacity 10 | 6 6 10 10 Average Capacity 7 | 5 6 7 10 Most Carried 7 | 4 4 7 7 Average Carried 3 | 1 2 3 4 Final Capacity 10 | 6 6 10 10 Final Carried 7 | 2 3 7 4 Class Distribution -------------------- 100% | Mutant Dominant Class ---------------- Mutant | -10/Materials Mutant | -9/Materials Mutant | -8/Materials Resources | -11 -10 -9 -8 ----------- Run | Scr Mat Mat Mat Matter Collected 346 | 186 74 50 36 Remotely . | . . . . Salvage Created 674 | . 84 365 225 Parts 26 | . 1 20 5 Haulers Intercepted . | . . . . Recyclers Shooed . | . . . . Parts Field Recycled . | . . . . Retrieved Matter . | . . . . Parts Self-Destructed . | . . . . Prevented . | . . . . Kills | -11 -10 -9 -8 ------- Run | Scr Mat Mat Mat Combat Hostiles Destroyed 12 | . 1 7 4 Guns 2 | . 1 . 1 Cannons 8 | . . 7 1 AOE 2 | . . . 2 Classes Destroyed 3 | . 2 1 . Watcher 3 | . 1 2 . Grunt 8 | . 1 3 4 Sentry 4 | . . 4 . Best Kill Streak 2 | . 1 2 2 Combat Bots Only 2 | . 1 2 2 Max Kills in Single Turn 1 | . 1 1 1 Gunslinging . | . . . . Exploded 1 | . . . 1 Melee . | . . . . Uniques/NPCs Destroyed . | . . . . Combat | -11 -10 -9 -8 -------- Run | Scr Mat Mat Mat Damage Taken 1788 | . 89 183 1516 Core 659 | . 13 94 552 Absorbed by Shields . | . . . . Core Remaining (%) 90 | 100 94 76 . Volleys Fired 35 | . 7 16 12 Largest 2 | . 2 2 2 Hottest 118 | . 90 118 116 Shots Fired 69 | . 14 32 23 Gun 41 | . 14 16 11 Cannon 28 | . . 16 12 Launcher . | . . . . Special . | . . . . Kinetic . | . . . . Thermal 54 | . 7 32 15 Explosive . | . . . . Electromagnetic 15 | . 7 . 8 Robot Hit Streak 12 | . 5 12 9 Robot Miss Streak 1 | . 1 1 1 Penetration Max . | . . . . Secondary Targets . | . . . . Shots Hit Robots 56 | . 10 28 18 Core Hits 22 | . 4 11 7 Critical Hits . | . . . . Critical Kills . | . . . . Critical Parts Destroyed . | . . . . Melee Attacks . | . . . . Impact . | . . . . Slashing . | . . . . Piercing . | . . . . Sneak Attacks . | . . . . Combat Hostiles . | . . . . Follow-up Attacks . | . . . . Damage Inflicted 974 | . 131 461 382 Guns 461 | . 131 173 157 Cannons 399 | . . 288 111 Explosions 113 | . . . 113 Melee . | . . . . Ramming 1 | . . . 1 Kinetic . | . . . . Thermal 801 | . 73 461 267 Explosive . | . . . . Electromagnetic 172 | . 58 . 114 Impact . | . . . . Slashing . | . . . . Piercing . | . . . . Highest Corruption . | . . . . Average Corruption . | . . . . Corruption Purged . | . . . . Overload Shots . | . . . . Overflow Damage 2 | . . . 2 Projectiles . | . . . . Explosions 2 | . . . 2 Melee . | . . . . Knockbacks . | . . . . Impact . | . . . . Kinetic . | . . . . Secondary . | . . . . Self-Inflicted Damage 239 | . . . 239 Shots 4 | . . . 4 Rammed 1 | . . . 1 Targets Rammed 1 | . . . 1 Kicked . | . . . . Crushed . | . . . . Highest Temperature 207 | . 207 33 35 Average Temperature 34 | . 92 8 8 Received Heat Transfer 669 | . 54 57 558 Siege Activations . | . . . . Robots Corrupted . | . . . . Combat Hostiles . | . . . . Parts Fried . | . . . . Impact Corruptions . | . . . . Robots Melted . | . . . . Combat Hostiles . | . . . . Parts Melted 3 | . 2 1 . Heat Transferred 1654 | . 222 1036 396 Parts Sabotaged . | . . . . Parts Stolen . | . . . . Parts Stripped . | . . . . Power Chain Reactions 2 | . . . 2 Missiles Intercepted . | . . . . Alert | -11 -10 -9 -8 ------- Run | Scr Mat Mat Mat Peak Influence 304 | . 67 304 224 Initial 46 | . . 27 46 Average 114 | . 35 140 156 Maximum Alert Level 1 | . . 1 1 Low Security (%) 81 | 100 100 73 79 Level 1 18 | . . 26 20 Level 2 . | . . . . Level 3 . | . . . . Level 4 . | . . . . Level 5 . | . . . . High Security . | . . . . Max Security . | . . . . Squads Dispatched . | . . . . Investigation . | . . . . Extermination . | . . . . Reinforcement . | . . . . Assault . | . . . . Garrison . | . . . . Intercept . | . . . . Construction Impeded . | . . . . Haulers Reinforced . | . . . . Stealth | -11 -10 -9 -8 --------- Run | Scr Mat Mat Mat Distress Signals 3 | . . 2 1 Communications Jammed 12 | . . . 12 Distress Signals 12 | . . . 12 Times Spotted 26 | . 3 11 12 Peak Tracking Total 8 | . 2 3 8 Tactical Retreats 1 | . 1 . . Traps | -11 -10 -9 -8 ------- Run | Scr Mat Mat Mat Traps Triggered 1 | . . . 1 Indirectly . | . . . . Trap Hack Attempts . | . . . . Triggered . | . . . . Disarmed . | . . . . Reprogrammed . | . . . . Reused . | . . . . Traps Extracted . | . . . . Installed . | . . . . Triggered . | . . . . Machines | -11 -10 -9 -8 ---------- Run | Scr Mat Mat Mat Machines Disabled 3 | . . . 3 Max in Single Turn 3 | . . . 3 Machines Sabotaged . | . . . . Garrisons Compromised . | . . . . Overloaded Fab Kills . | . . . . Fab Network Shutdowns . | . . . . Hacking | -11 -10 -9 -8 --------- Run | Scr Mat Mat Mat Machines Accessed . | . . . . Terminals . | . . . . Fabricators . | . . . . Repair Stations . | . . . . Recycling Units . | . . . . Scanalyzers . | . . . . Garrison Access . | . . . . Total Hacks . | . . . . Successful . | . . . . Failed . | . . . . Catastrophic . | . . . . Database Lockouts . | . . . . Manual . | . . . . Terminals . | . . . . Fabricators . | . . . . Repair Stations . | . . . . Recycling Units . | . . . . Scanalyzers . | . . . . Garrison Access . | . . . . Terminal Hacks . | . . . . Fabricator Hacks . | . . . . Repair Station Hacks . | . . . . Recycling Unit Hacks . | . . . . Scanalyzer . | . . . . Garrison Access Hacks . | . . . . Unauthorized Hacks . | . . . . Terminals . | . . . . Fabricators . | . . . . Repair Stations . | . . . . Recycling Units . | . . . . Scanalyzers . | . . . . Garrison Access . | . . . . Data Cores Recovered . | . . . . Used . | . . . . Hacking Detections . | . . . . Full Trace Events . | . . . . Feedback Events . | . . . . Feedback Blocked . | . . . . Robot Schematics Acquired . | . . . . Robots Built . | . . . . Matter . | . . . . Time . | . . . . Total Robot Build Rating . | . . . . Part Schematics Acquired . | . . . . Parts Built . | . . . . Matter . | . . . . Time . | . . . . Total Part Build Rating . | . . . . Parts Repaired . | . . . . Time . | . . . . Parts Recycled . | . . . . Recycled Matter . | . . . . Retrieved Matter . | . . . . Retrieved Components . | . . . . Parts Scanalyzed . | . . . . Part Schematics Acquired . | . . . . Parts Damaged . | . . . . Bothacking | -11 -10 -9 -8 ------------ Run | Scr Mat Mat Mat Used RIF Installer . | . . . . Robots Hacked . | . . . . Non-combat . | . . . . Combat . | . . . . Robot Hacks Applied . | . . . . Relay Couplers Released . | . . . . Robots Rewired . | . . . . Allies Hacked . | . . . . Hacks Repelled . | . . . . Allies | -11 -10 -9 -8 -------- Run | Scr Mat Mat Mat Total Allies . | . . . . Largest Group . | . . . . Highest-Rated Group . | . . . . Highest-Rated Ally . | . . . . Total Orders . | . . . . Ally Attacks . | . . . . Total Damage . | . . . . Kills . | . . . . Allies Corrupted . | . . . . Allies Melted . | . . . . Intel | -11 -10 -9 -8 ------- Run | Scr Mat Mat Mat Robot Analysis Total . | . . . . Derelict Logs Recovered . | . . . . Drone Launches . | . . . . Drone Recoveries . | . . . . Exploration | -11 -10 -9 -8 ------------- Run | Scr Mat Mat Mat Turns Passed 1052 | 53 226 541 232 Spaces Moved 477 | 30 121 242 84 Core 9 | 7 . . 2 Treads 468 | 23 121 242 82 Legs . | . . . . Wheels . | . . . . Hover . | . . . . Flight . | . . . . Fastest Speed 50 | 50 160 160 160 Average Speed 159 | 134 160 160 166 Slowest Speed 300 | 160 160 160 300 Overloaded Moves . | . . . . Propulsion Burnouts . | . . . . Robots Hopped . | . . . . Cave-ins Triggered . | . . . . Exploration Rate (%) 19 | 3 26 27 22 Regions Visited 3 Branch Regions . Pre-discovered Areas . | . . . . Known Exits Taken . | . . . . Unknown Exits Taken 3 | 1 1 1 . Scrap Searched . | . . . . Spaces Dug . | . . . . Terrain Destroyed 58 | . . . 58 Melee . | . . . . Projectile 1 | . . . 1 AOE 57 | . . . 57 Terrain Rammed . | . . . . Walls Destroyed . | . . . . Machines Disabled . | . . . . Actions | -11 -10 -9 -8 --------- Run | Scr Mat Mat Mat Total 699 | 43 140 364 152 Wait 145 | . 10 93 42 Move 474 | 29 120 241 84 Hop . | . . . . Pick Up 21 | 8 2 8 3 Fast Attach . | . . . . Attach 11 | 6 1 2 2 Detach . | . . . . Swap 6 | . . 2 4 Drop 6 | . . 2 4 Fire 35 | . 7 16 12 Melee . | . . . . Ram . | . . . . Kick . | . . . . Crush 1 | . . . 1 Escape Stasis . | . . . . Rewire . | . . . . Trap . | . . . . Miscellaneous . | . . . . Route ------- -11/Scrapyard -10/Materials -9/Materials -8/Materials History --------- Turn | Location | Event 5 | -11/Scrapyard | Discovered new exit (range 15) 54 | -11/Scrapyard | Entered Materials 224 | -10/Materials | Discovered new exit (range 16) 280 | -10/Materials | Entered another Materials area 280 | -9/Materials | Evolved 2 slots: Power x1, Utility x1 301 | -9/Materials | Build established: Mutant 771 | -9/Materials | Discovered new exit (range 3) 821 | -9/Materials | Entered another Materials area 821 | -8/Materials | Evolved 2 slots: Propulsion x1, Utility x1 1031 | -8/Materials | Core integrity fell below 50% 1049 | -8/Materials | Core integrity fell below 20% 1053 | -8/Materials | Destroyed by G-47 Trooper with Particle Gun Last Messages --------------- K-01 Serf collects debris. R-06 Scavenger collects Lgt. Treads. K-01 Serf cleans the Terminal. Beam Rifle destroyed. Lgt. Treads destroyed. R-06 Scavenger collects Particle Cannon. Slammed into G-47 Trooper. K-01 Serf collects debris. Lgt. Treads destroyed. Acquired 16 matter. K-01 Serf cleans the Terminal. K-01 Serf collects debris. Matter Filter disabled. Ion Cannon destroyed. K-01 Serf collects debris. Triggered Blade Trap. Massive razor-sharp blades shoot up from within the floor. Arm. Treads severed. Heat Sink severed. K-01 Serf collects debris. Map ----- +----------------------------------------------------+ | ?????????????????????????????????????????????##### | | ???????????????????????????????????????????? | | ???????????????????????????????????????????? | | ??????????????????????????????????????????? | | ??????????????????????????????????????????? | | ??????????????????????????????????????????? | | ?????????????????????????????????????????? | | ?????????????????????????????????????????? | | ????????????????????????#+##?? ??? ???? | | ?????????????????????? ?# ?? ?????###+#? | | ?????????????????????# ?# ??? ?? ## | | ?????????????????????# ?# ??? ?? ## | | ?????????????????????+ ?? ?## """ | | ?????????????????????? k ?? ?+ ^""" ## | | ?????????????????????? ?##"### """ ## | | ??????????????????????? ?# ######? | | ???????????????????????# #?# ##????? | | ???????????????????#???# #?# ]! "#????? | | ??????????????????##!??# #?# !! T#????? | | ??????????????????#! ?# #?# !! "#????? | | ??????????????????#! ## ### #??#### | | ??????????????????#! Y #??# | | ??????????????????#! ! g #??# | | ???????????????????#!! t= g r a #### | | ???????????????????#### l g gw^ #### + | | ??????????????????????# @ %"""% ####+#### | | ??????????????????????# [ """"" %/ # | | ??????????????????????# """"" # #### | | ??????????????????????# """"" # / | | ??????????????????????# """"" # #### | | ??????????????????????# [ """"" # "T" #??? | | ??????????????????????# """"" # #??? | | ??????????????????????## #########??? | | ??????????????????????? #??????????? | | ??????????????????????## ??????????? | | ???????????????????????##"Y"# ??????????? | | ????????????????????????#"""# ??????????? | | ?????????????????????????###? ??????????? | | ????????????????????????????? ??????????? | | ?????????????????????????????????###+##??????????? | | ???????????????????????????????????? ????????????? | | ????????????????????????????????????!????????????? | | ?????????????????????????????????????????????????? | | ?????????????????????????????????????????????????? | | ?????????????????????????????????????????????????? | | ?????????????????????????????????????????????????? | | ?????????????????????????????????????????????????? | | ?????????????????????????????????????????????????? | | ?????????????????????????????????????????????????? | | ?????????????????????????????????????????????????? | +----------------------------------------------------+ Best States ------------- Heat Dissipation 51 Energy Generation 15 Energy Capacity 400 Matter Stores 300 Matter Capacity 300 Sight Range 16 Terrain Scan Density 10 Jamming Range 8 Evasion (%) 40 Recoil Reduction 3 Item Schematics ----------------- None Robot Schematics ------------------ None Fabricated ------------ Nothing Alien Tech Used ----------------- None Achievements -------------- Total Silence Challenges ------------ None Game ------ Seed MeleeLightCorpse Manual? 0 Play Time 00:12:26 Cumulative 14.8 hours Start 2022.02.02 @ 13:21:52 End 2022.02.02 @ 13:39:41 Sessions 1 Manual Loads 0 Difficulty Rogue Special Mode None Game No. 31 Rogue 31 Adventurer 0 Explorer 0 Win Type - Total 0 Types 0/0/0/0/0/0/0/0/0 Lore% 16 Gallery% 20 Achievement% 16 Wizard Run 0 Options --------- ASCII 0 Keyboard 0 Movement Mouse Keybinds 0 Fullscreen 1 Font 18/SmallcapsGlow Map View 76x50 Tactical HUD 0 Map Filters NONE Filters NONE Steam 1 RUN: ccbc2cf7-fccf-4d40-b6a0-b3b77c0c6492